bitfinex/quotes_BTCUSD_20250718
["timestamp","ask_amount","ask_price","bid_price","bid_amount"]
[1752859874970,0.17802629,117960.0,117950.0,0.67875822]
[1752859875404,0.17802629,117960.0,117950.0,0.68723617]
[1752859875624,0.17802629,117960.0,117950.0,0.68723624]
[1752859875955,0.18650352,117960.0,117950.0,1.18679018]
[1752859876162,0.19498096,117960.0,117950.0,0.73619199]
[1752859876362,0.19498096,117960.0,117950.0,1.21879025]
[1752859876599,0.19498096,117960.0,117950.0,1.21031245]
[1752859876822,0.19498096,117960.0,117950.0,0.73619199]
[1752859877023,0.19498096,117960.0,117950.0,1.21879033]
[1752859877424,0.50891596,117970.0,117950.0,1.27063773]
[1752859877623,0.52682179,117970.0,117960.0,0.48259826]
[1752859877858,0.51834564,117970.0,117960.0,0.4962357]
[1752859878058,0.50986927,117970.0,117960.0,0.01363744]
[1752859878194,0.50986927,117970.0,117960.0,0.4962357]
[1752859878408,0.50986927,117970.0,117960.0,0.67426199]
[1752859878614,0.51086927,117970.0,117960.0,0.67426206]
[1752859878822,0.51086927,117970.0,117960.0,0.4962357]
[1752859879024,0.51086927,117970.0,117960.0,0.48775826]
[1752859879252,0.51186927,117970.0,117960.0,0.49623563]
[1752859879451,0.51086927,117970.0,117960.0,0.49623563]
[1752859879688,0.51086927,117970.0,117960.0,0.48775826]
[1752859879888,0.51186927,117970.0,117960.0,0.50471307]
[1752859880128,0.30091892,117970.0,117960.0,0.6912163]
[1752859880443,0.11443099,117970.0,117960.0,1.63985112]
[1752859880812,0.11443099,117970.0,117960.0,1.7253614]
[1752859881655,0.11343099,117970.0,117960.0,1.7253614]
[1752859881836,0.11243099,117970.0,117960.0,1.7263614]
[1752859882186,0.11243099,117970.0,117960.0,1.7253614]
[1752859882389,0.11243099,117970.0,117960.0,1.7283614]
[1752859883007,8.443e-05,117980.0,117970.0,0.22666393]
[1752859883211,8.443e-05,117980.0,117970.0,1.02629209]
[1752859883834,8.443e-05,117980.0,117970.0,1.38083294]
[1752859884678,8.443e-05,117980.0,117970.0,1.38483294]
[1752859886170,8.443e-05,117980.0,117970.0,0.76163468]
[1752859886376,8.443e-05,117980.0,117970.0,1.38507294]
[1752859887008,8.443e-05,117980.0,117970.0,1.38807294]
[1752859887224,8.443e-05,117980.0,117970.0,0.90547468]
[1752859887438,8.443e-05,117980.0,117970.0,1.38807294]
[1752859890213,8.443e-05,117980.0,117970.0,0.90547468]
[1752859890422,8.443e-05,117980.0,117970.0,1.38807294]
[1752859893831,8.443e-05,117980.0,117970.0,0.90547468]
[1752859894013,8.443e-05,117980.0,117970.0,1.38807294]
[1752859894458,8.443e-05,117980.0,117970.0,0.90547468]
[1752859894664,8.443e-05,117980.0,117970.0,1.38807294]
[1752859895228,8.443e-05,117980.0,117970.0,0.90547468]
[1752859895413,8.443e-05,117980.0,117970.0,0.81971506]
[1752859895625,0.00855979,117980.0,117970.0,0.77299421]
[1752859895850,8.443e-05,117980.0,117970.0,1.25559247]
[1752859896055,8.443e-05,117980.0,117970.0,1.28669247]
[1752859896498,8.443e-05,117980.0,117970.0,1.28369247]
[1752859896907,8.443e-05,117980.0,117970.0,1.28069247]
[1752859897291,8.443e-05,117980.0,117970.0,1.28369247]
[1752859897643,8.443e-05,117980.0,117970.0,1.36945209]
[1752859897983,8.443e-05,117980.0,117970.0,1.38399294]
[1752859900063,8.443e-05,117980.0,117970.0,1.37999294]
[1752859900493,8.443e-05,117980.0,117970.0,1.38699294]
[1752859900719,8.443e-05,117980.0,117970.0,1.8695912]
[1752859900899,8.443e-05,117980.0,117970.0,1.38699294]
[1752859902118,8.443e-05,117980.0,117970.0,1.8695912]
[1752859902321,0.2100644,118030.0,118020.0,0.6774796]
[1752859902492,0.22835887,118030.0,118020.0,0.8178396]
[1752859902692,0.23683122,118030.0,118020.0,0.81783975]
[1752859902901,0.23150887,118030.0,118020.0,0.82631238]
[1752859903098,0.0535883,118030.0,118020.0,0.82631238]
[1752859903300,0.04511631,118030.0,118020.0,0.85234918]
[1752859903504,0.23883114,118030.0,118020.0,0.39121131]
[1752859903810,0.23035879,118030.0,118020.0,0.84387655]
[1752859904060,0.23335879,118030.0,118020.0,0.36975092]
[1752859904223,0.23335879,118030.0,118020.0,0.84387647]
[1752859904432,0.23335879,118030.0,118020.0,0.82693092]
[1752859904433,0.24183114,118030.0,118020.0,0.82693092]
[1752859904626,0.24183114,118030.0,118020.0,0.83540384]
[1752859904865,0.23883114,118030.0,118020.0,0.88888075]
[1752859905007,0.23035879,118030.0,118020.0,0.42322804]
[1752859905216,0.23883099,118030.0,118020.0,0.85234968]
[1752859905446,0.05243822,118030.0,118020.0,0.86082195]
[1752859905674,0.01266631,118030.0,118020.0,0.86298195]
[1752859905875,0.00208454,118030.0,118020.0,1.20602195]
[1752859906291,0.00208454,118030.0,118020.0,1.24790294]
[1752859906494,0.00300218,118030.0,118020.0,1.22202195]
[1752859906710,0.00100218,118030.0,118020.0,1.32373223]
[1752859906948,0.00100218,118030.0,118020.0,0.84113397]
[1752859907169,0.00200218,118030.0,118020.0,0.849579]
[1752859907378,2.18e-06,118030.0,118020.0,0.849579]
[1752859907593,2.18e-06,118030.0,118020.0,1.31617726]
[1752859907810,2.18e-06,118030.0,118020.0,1.33317726]
[1752859908635,2.18e-06,118030.0,118020.0,0.851579]
[1752859909055,2.18e-06,118030.0,118020.0,1.33417726]
[1752859909333,2.18e-06,118030.0,118020.0,0.93733862]
[1752859909506,2.18e-06,118030.0,118020.0,1.41993688]
[1752859909927,2.18e-06,118030.0,118020.0,1.38773688]
[1752859910305,2.18e-06,118030.0,118020.0,0.95127947]
[1752859910511,2.18e-06,118030.0,118020.0,1.43387773]
[1752859912758,2.18e-06,118030.0,118020.0,1.42065688]
[1752859912972,0.03140218,118030.0,118020.0,0.673819]
[1752859913191,2.18e-06,118030.0,118020.0,1.30353726]
[1752859913396,2.18e-06,118030.0,118020.0,0.820939]
[1752859913596,2.18e-06,118030.0,118020.0,1.30353726]
[1752859914047,0.00211218,118030.0,118020.0,0.820939]
[1752859914270,0.00211218,118030.0,118020.0,1.30353726]
[1752859914512,2.18e-06,118030.0,118020.0,0.90669862]
[1752859914755,2.18e-06,118030.0,118020.0,1.38929688]
[1752859915384,2.18e-06,118030.0,118020.0,0.90669862]
[1752859915598,2.18e-06,118030.0,118020.0,1.30353726]
[1752859915859,0.02598395,118030.0,118020.0,1.30049726]
[1752859916098,0.02598395,118030.0,118020.0,0.817899]
[1752859916315,0.02598395,118030.0,118020.0,1.30049726]
[1752859916533,0.02598395,118030.0,118020.0,0.817899]
[1752859916780,0.04248395,118030.0,118020.0,1.30049726]
[1752859916985,0.05095586,118030.0,118020.0,1.30949428]
[1752859917364,0.05942785,118030.0,118020.0,1.30949428]
[1752859917521,0.04248395,118030.0,118020.0,1.30049726]
[1752859917724,0.05095586,118030.0,118020.0,1.21282698]
[1752859917941,0.05410586,118030.0,118020.0,1.21282698]
[1752859918136,0.22355495,118030.0,118020.0,0.69633777]
[1752859918347,0.22355495,118030.0,118020.0,0.17840183]
[1752859918686,0.26285415,118030.0,118020.0,0.17840183]
[1752859918899,0.22355524,118030.0,118020.0,0.17840183]
[1752859919580,0.22355524,118030.0,118020.0,0.17740183]
[1752859919803,0.21508297,118030.0,118020.0,0.17740183]
[1752859920012,0.21608297,118030.0,118020.0,0.17740183]
[1752859920866,0.21608297,118030.0,118020.0,0.18587497]
[1752859921086,0.21608297,118030.0,118020.0,0.17740183]
[1752859921504,0.21608297,118030.0,118020.0,0.36281054]
[1752859921505,0.2245551,118030.0,118020.0,0.36281054]
[1752859921716,0.2245551,118030.0,118020.0,0.17640183]
[1752859921952,0.25548189,118030.0,118020.0,0.17640183]
[1752859922187,0.25548189,118030.0,118020.0,0.15036503]
[1752859922404,0.25548189,118030.0,118020.0,0.14192]
[1752859922819,0.21608297,118030.0,118020.0,0.3113828]
[1752859922993,0.21608297,118030.0,118020.0,0.14192]
[1752859923467,0.21608297,118030.0,118020.0,0.328329]
[1752859923876,0.21608297,118030.0,118020.0,0.15039314]
[1752859924296,0.21608297,118030.0,118020.0,0.31985594]
[1752859924502,0.21608297,118030.0,118020.0,0.32832886]
[1752859924767,0.21608297,118030.0,118020.0,0.33680185]
[1752859924987,0.2245551,118030.0,118020.0,0.34527463]
[1752859925201,0.05510622,118030.0,118020.0,0.35374682]
[1752859925383,0.06042849,118030.0,118020.0,0.35374682]
[1752859925838,0.23284693,118030.0,118020.0,0.33680149]
[1752859926076,0.24131935,118030.0,118020.0,0.32832885]
[1752859926288,0.23244744,118030.0,118020.0,0.15884082]
[1752859926496,0.23244744,118030.0,118020.0,0.34524946]
[1752859926704,0.23244744,118030.0,118020.0,0.37023143]
[1752859927104,0.23244744,118030.0,118020.0,0.17534965]
[1752859927311,0.21550304,118030.0,118020.0,0.15036768]
[1752859927743,0.21550304,118030.0,118020.0,0.32830362]
[1752859927964,0.21550304,118030.0,118020.0,0.3452496]
[1752859928145,0.22397524,118030.0,118020.0,0.3452496]
[1752859928357,0.23244708,118030.0,118020.0,0.82784786]
[1752859928562,0.22397481,118030.0,118020.0,0.84479334]
[1752859928755,0.23244723,118030.0,118020.0,0.15036768]
[1752859928933,0.22397524,118030.0,118020.0,0.15036768]
[1752859930141,0.22397524,118030.0,118020.0,0.14192]
[1752859930562,0.22599786,118010.0,118000.0,0.52644045]
[1752859930786,0.21950408,118010.0,118000.0,0.66812045]
[1752859931036,0.22797779,118010.0,118000.0,1.16753652]
[1752859931248,0.22797779,118010.0,118000.0,0.67646398]
[1752859931458,0.22797779,118010.0,118000.0,0.70998611]
[1752859931667,0.22797779,118010.0,118000.0,0.71846062]
[1752859931876,0.22594779,118010.0,118000.0,0.72693483]
[1752859932102,0.22594779,118010.0,118000.0,0.71946062]
[1752859932329,0.22594779,118010.0,118000.0,0.69403726]
[1752859932531,0.23442164,118010.0,118000.0,0.65417152]
[1752859932735,0.22594779,118010.0,118000.0,0.65117152]
[1752859932940,0.22594779,118010.0,118000.0,0.66812016]
[1752859933148,0.22594779,118010.0,118000.0,0.66812023]
[1752859933354,0.21747408,118010.0,118000.0,0.66812023]
[1752859933580,0.22594779,118010.0,118000.0,0.66812023]
[1752859933780,0.22594779,118010.0,118000.0,0.65964602]
[1752859933915,0.23442164,118010.0,118000.0,0.49015457]
[1752859934119,0.23442164,118010.0,118000.0,0.48168]
[1752859935496,0.26286443,118010.0,118000.0,0.48168]
[1752859935668,0.25439072,118010.0,118000.0,0.50702588]
[1752859936064,0.25439072,118010.0,118000.0,0.48168]
[1752859936479,0.78210955,118010.0,118000.0,0.14168]
[1752859936688,0.22783068,117990.0,117980.0,0.50952025]
[1752859936872,0.22981068,117990.0,117980.0,0.65915619]
[1752859937079,0.22981068,117990.0,117980.0,0.48116]
[1752859937283,0.1963606,117990.0,117980.0,1.15023017]
[1752859937513,0.17996053,117990.0,117980.0,1.16359575]
[1752859937737,0.21982262,118000.0,117990.0,0.52645625]
[1752859937959,0.21982262,118000.0,117990.0,1.01761187]
[1752859937960,0.21332834,118000.0,117990.0,1.01761187]
[1752859938197,0.21035834,118000.0,117990.0,1.00913687]
[1752859938438,0.21883262,118000.0,117990.0,0.53501361]
[1752859938675,0.22730684,118000.0,117990.0,0.34855751]
[1752859938844,0.23578127,118000.0,117990.0,0.34008236]
[1752859939488,0.22730756,118000.0,117990.0,0.34008236]
[1752859940916,0.21883233,118000.0,117990.0,0.51806354]
[1752859941379,0.21883233,118000.0,117990.0,0.53501383]
[1752859941380,0.22730661,118000.0,117990.0,0.53501383]
[1752859941618,0.22730661,118000.0,117990.0,0.52653876]
[1752859941844,0.23578155,118000.0,117990.0,0.34855765]
[1752859942094,0.21883262,118000.0,117990.0,1.00066173]
[1752859942305,0.23578162,118000.0,117990.0,1.0006618]
[1752859942497,0.23578162,118000.0,117990.0,0.82268062]
[1752859943162,0.21035834,118000.0,117990.0,1.00913673]
[1752859943340,0.21883255,118000.0,117990.0,1.00913688]
[1752859943582,0.01708,118000.0,117990.0,1.04197184]
[1752859943770,0.00198,118000.0,117990.0,1.03945146]
[1752859944019,0.22729714,118010.0,118000.0,0.19491502]
[1752859944225,0.24424442,118010.0,118000.0,0.81516878]
[1752859944449,0.23775178,118010.0,118000.0,0.14613]
[1752859944704,0.28442201,118010.0,118000.0,0.14124]
[1752859944904,0.27891844,118010.0,118000.0,0.14124]
[1752859945346,0.22477472,118010.0,118000.0,0.62383826]
[1752859945557,0.22477472,118010.0,118000.0,0.80375435]
[1752859945558,0.22180393,118010.0,118000.0,0.80375435]
[1752859945767,0.1978775,118010.0,118000.0,0.82364321]
[1752859945985,0.21482499,118010.0,118000.0,0.14613]
[1752859946216,0.22265171,118010.0,118000.0,0.62872826]
[1752859946436,0.21417822,118010.0,118000.0,0.00195]
[1752859946656,0.22957822,118010.0,118000.0,0.62395826]
[1752859946972,0.22110437,118010.0,118000.0,0.63243283]
[1752859947177,0.20770415,118010.0,118000.0,0.81528871]
[1752859947388,0.21617736,118010.0,118000.0,0.63732283]
[1752859947598,0.21617736,118010.0,118000.0,0.82376321]
[1752859947807,0.23312471,118010.0,118000.0,0.81528885]
[1752859948307,0.2246515,118010.0,118000.0,0.62884826]
[1752859948465,0.23312535,118010.0,118000.0,0.63438283]
[1752859948785,0.23312535,118010.0,118000.0,0.64285733]
[1752859948994,0.2246515,118010.0,118000.0,0.64285733]
[1752859949230,0.23312528,118010.0,118000.0,0.63438283]
[1752859949637,0.22465186,118010.0,118000.0,0.62590826]
[1752859949844,0.21617829,118010.0,118000.0,0.14331]
[1752859950073,0.22300465,118010.0,118000.0,0.14331]
[1752859950262,0.22300465,118010.0,118000.0,0.14136]
[1752859950876,0.21453094,118010.0,118000.0,0.14136]
[1752859952428,0.21769094,118010.0,118000.0,0.14136]
[1752859952988,0.16949152,118000.0,117990.0,0.48128236]
[1752859953189,0.20498988,118000.0,117990.0,1.1438618]
[1752859953376,0.19686402,118000.0,117990.0,0.66973869]
[1752859953579,0.20533852,118000.0,117990.0,1.15534695]
[1752859953781,0.20533852,118000.0,117990.0,0.48629236]
[1752859953994,0.20533852,118000.0,117990.0,0.96889062]
[1752859954210,0.21306452,118000.0,117990.0,0.96889062]
[1752859954413,0.21306452,118000.0,117990.0,0.97736591]
[1752859954613,0.21306401,118000.0,117990.0,1.15534695]
[1752859954888,0.17796544,118000.0,117990.0,1.25805629]
[1752859955106,0.18643951,118000.0,117990.0,1.17229667]
[1752859955452,0.21186229,118000.0,117990.0,0.68122376]
[1752859955653,0.20338786,118000.0,117990.0,1.17229702]
[1752859955871,0.20338786,118000.0,117990.0,1.18077195]
[1752859956080,0.19491365,118000.0,117990.0,1.18077152]
[1752859956900,0.19491365,118000.0,117990.0,1.18077116]
[1752859957136,0.20925065,118010.0,118000.0,0.17796609]
[1752859957351,0.18642393,118010.0,118000.0,0.67404878]
[1752859957560,0.18642393,118010.0,118000.0,0.68252328]
[1752859957783,0.19489757,118010.0,118000.0,0.69099764]
[1752859957993,0.18642393,118010.0,118000.0,0.68252328]
[1752859958212,0.19489757,118010.0,118000.0,0.66557435]
[1752859958420,0.19589757,118010.0,118000.0,0.67404878]
[1752859958834,0.20437142,118010.0,118000.0,0.49608283]
[1752859959038,0.20437135,118010.0,118000.0,0.49608283]
[1752859959250,0.19589757,118010.0,118000.0,0.68252321]
[1752859959653,0.19589764,118010.0,118000.0,0.68252321]
[1752859959801,0.19789757,118010.0,118000.0,0.19145059]
[1752859960004,0.19789757,118010.0,118000.0,0.2083993]
[1752859960225,0.20637135,118010.0,118000.0,0.67404885]
[1752859960674,0.20637135,118010.0,118000.0,0.68252328]
[1752859960877,0.20637135,118010.0,118000.0,0.68252313]
[1752859960878,0.18942379,118010.0,118000.0,0.68252313]
[1752859961079,0.003,118010.0,118000.0,0.80765682]
[1752859961461,0.003,118010.0,118000.0,0.7218972]
[1752859961672,0.003,118010.0,118000.0,1.0618972]
[1752859962073,0.003,118010.0,118000.0,1.54449546]
[1752859962277,0.003,118010.0,118000.0,1.63000574]
[1752859962492,0.002,118010.0,118000.0,1.63000574]
[1752859962696,0.21887672,118040.0,118020.0,0.02541854]
[1752859962860,0.21887672,118040.0,118030.0,0.15127242]
[1752859962861,0.21299821,118040.0,118030.0,0.15127242]
[1752859963057,0.18832665,118040.0,118030.0,0.81480139]
[1752859963263,0.19679813,118040.0,118030.0,0.81480139]
[1752859963467,0.21269856,118040.0,118030.0,0.62840826]
[1752859963670,0.22779856,118040.0,118030.0,0.62840826]
[1752859963875,0.21932722,118040.0,118030.0,0.1428]
[1752859964078,0.22232722,118040.0,118030.0,0.1428]
[1752859964555,0.22232722,118040.0,118030.0,0.15143049]
[1752859965102,0.22232686,118040.0,118030.0,0.33482921]
[1752859965428,0.19979842,118040.0,118030.0,0.82890982]
[1752859965592,0.21479878,118040.0,118030.0,0.15444049]
[1752859965796,0.23129878,118040.0,118030.0,0.15444049]
[1752859966013,0.23129878,118040.0,118030.0,0.15143049]
[1752859966210,0.2228273,118040.0,118030.0,0.15143049]
[1752859966425,0.21435574,118040.0,118030.0,0.15143049]
[1752859967260,0.22282715,118040.0,118030.0,0.15990291]
[1752859967597,0.20632715,118040.0,118030.0,0.15143049]
[1752859968004,0.22192715,118040.0,118030.0,0.15990284]
[1752859968220,0.19784806,118040.0,118030.0,0.34083355]
[1752859968421,0.19784799,118040.0,118030.0,0.82343181]
[1752859968633,0.21479125,118040.0,118030.0,0.16291291]
[1752859968846,0.20631955,118040.0,118030.0,0.16291284]
[1752859969097,0.21674125,118040.0,118030.0,0.16291291]
[1752859969345,0.20826955,118040.0,118030.0,0.16291291]
[1752859969552,0.20827005,118040.0,118030.0,0.15444049]
[1752859969990,0.19132737,118040.0,118030.0,0.15143049]
[1752859970220,0.22362737,118040.0,118030.0,0.15143049]
[1752859970436,0.22362737,118040.0,118030.0,0.14943049]
[1752859970638,0.20852737,118040.0,118030.0,0.14943049]
[1752859971067,0.22462737,118040.0,118030.0,0.14943049]
[1752859971491,0.20852737,118040.0,118030.0,0.14943049]
[1752859971702,0.20852701,118040.0,118030.0,0.14943049]
[1752859971907,0.19332701,118040.0,118030.0,0.14943049]
[1752859972113,0.20179871,118040.0,118030.0,0.15143049]
[1752859972314,0.19332701,118040.0,118030.0,0.15143049]
[1752859972497,0.20179871,118040.0,118030.0,0.15143049]
[1752859972690,0.35797871,118040.0,118030.0,0.15143049]
[1752859973097,0.21749806,118040.0,118030.0,0.32087893]
[1752859973298,0.20179806,118040.0,118030.0,0.32087893]
[1752859973622,0.20179806,118040.0,118030.0,0.33236128]
[1752859973825,0.20179856,118040.0,118030.0,0.15444049]
[1752859974154,0.20179856,118040.0,118030.0,0.01364049]
[1752859974360,0.21180866,118030.0,118020.0,0.65833586]
[1752859974515,0.20528681,118030.0,118020.0,0.4804]
[1752859974680,0.17139844,118030.0,118020.0,1.15787989]
[1752859974888,0.20528674,118030.0,118020.0,1.15140711]
[1752859975133,0.18834227,118030.0,118020.0,1.17974659]
[1752859975351,0.18639227,118030.0,118020.0,1.17974667]
[1752859975929,0.19486447,118030.0,118020.0,1.17974674]
[1752859976133,0.20333682,118030.0,118020.0,0.99333832]
[1752859976334,0.19486447,118030.0,118020.0,0.69714877]
[1752859976559,0.20333674,118030.0,118020.0,1.17127411]
[1752859976958,0.20333674,118030.0,118020.0,1.15432806]
[1752859977193,0.18639227,118030.0,118020.0,1.17127404]
[1752859977724,0.20528675,118030.0,118020.0,0.97338212]
[1752859977931,0.20528667,118030.0,118020.0,1.14284492]
[1752859978346,0.20528667,118030.0,118020.0,0.48878386]
[1752859978347,0.22168667,118030.0,118020.0,0.48878386]
[1752859978552,0.21603071,118030.0,118020.0,0.48878386]
[1752859978991,0.20755844,118030.0,118020.0,0.48878386]
[1752859979198,0.00847328,118010.0,118000.0,1.04244799]
[1752859979419,0.19488163,118020.0,118010.0,0.50947716]
[1752859979641,0.19683163,118020.0,118010.0,1.00254927]
[1752859979843,0.19683163,118020.0,118010.0,1.00555927]
[1752859980045,0.1694628,118020.0,118010.0,1.10759997]
[1752859980267,0.17793529,118020.0,118010.0,0.61652836]
[1752859980507,0.17793529,118020.0,118010.0,0.53990836]
[1752859980717,0.18640792,118020.0,118010.0,1.03945339]
[1752859981138,0.44386319,118030.0,118010.0,1.03945275]
[1752859981339,0.33502433,118030.0,118020.0,0.66354412]
[1752859981596,0.20479411,118040.0,118020.0,0.34844434]
[1752859981821,0.21074821,118040.0,118030.0,0.00301]
[1752859982037,0.21074821,118040.0,118030.0,0.66556905]
[1752859982038,0.21921934,118040.0,118030.0,0.66556905]
[1752859982252,0.16944844,118030.0,118020.0,0.14305]
[1752859982471,0.18846306,118030.0,118020.0,0.96768826]
[1752859982683,0.21661079,118030.0,118020.0,0.48004]
[1752859982945,0.34877844,118030.0,118020.0,0.48004]
[1752859983616,0.8303767,118030.0,118020.0,0.14004]
[1752859983855,0.21013579,118020.0,118010.0,0.34]
[1752859984088,0.21752451,118010.0,118000.0,0.48072236]
[1752859984301,0.22261451,118010.0,118000.0,0.48072236]
[1752859984558,0.30837413,118010.0,118000.0,0.48072236]
[1752859984768,0.22261451,118010.0,118000.0,0.48072236]
[1752859985251,0.22261451,118010.0,118000.0,0.48172236]
[1752859985746,0.22261451,118010.0,118000.0,0.49036019]
[1752859987036,0.22261451,118010.0,118000.0,0.48172236]
[1752859988081,0.22261451,118010.0,118000.0,0.49027814]
[1752859988708,0.21414087,118010.0,118000.0,0.48172236]
[1752859989771,0.35486087,118010.0,118000.0,0.48172236]
[1752859991047,0.1948975,118010.0,118000.0,0.97784512]
[1752859991253,0.20337128,118010.0,118000.0,0.97784519]
[1752859991459,0.18642451,118010.0,118000.0,0.48677236]
[1752859991671,0.21979451,118010.0,118000.0,0.48172236]
[1752859991898,0.2725527,118010.0,118000.0,0.14172236]
[1752859992118,0.35806298,118010.0,118000.0,0.14172236]
[1752859992333,0.35806298,118010.0,118000.0,0.14192236]
[1752859992972,0.84066124,118010.0,118000.0,0.00108236]
[1752859993402,0.35806298,118010.0,118000.0,0.00108236]
[1752859993612,0.84066124,118010.0,118000.0,0.00108236]
[1752859994507,0.84066124,118010.0,118000.0,8.236e-05]
[1752859994930,0.84166124,118010.0,118000.0,8.236e-05]
[1752859995138,0.84066124,118010.0,118000.0,8.236e-05]
[1752859995346,0.84266124,118010.0,118000.0,8.236e-05]
[1752859995550,0.84366124,118010.0,118000.0,8.236e-05]
[1752859995998,0.36106298,118010.0,118000.0,8.236e-05]
[1752859996168,0.84366124,118010.0,118000.0,8.236e-05]
[1752859997214,0.84266124,118010.0,118000.0,8.236e-05]
[1752859997422,0.36006298,118010.0,118000.0,8.236e-05]
[1752859997650,0.84466124,118010.0,118000.0,8.236e-05]
[1752859999671,0.78644948,118010.0,118000.0,8.236e-05]
[1752860000099,0.30385122,118010.0,118000.0,8.236e-05]
[1752860000729,0.78644948,118010.0,118000.0,8.236e-05]
[1752860001378,0.30385122,118010.0,118000.0,8.236e-05]
[1752860001594,0.78644948,118010.0,118000.0,8.236e-05]
[1752860002425,0.30385122,118010.0,118000.0,8.236e-05]
[1752860002634,0.78644948,118010.0,118000.0,8.236e-05]
[1752860004470,0.79511283,118010.0,118000.0,8.236e-05]
[1752860005082,0.31251457,118010.0,118000.0,8.236e-05]
[1752860005328,0.79511283,118010.0,118000.0,8.236e-05]
[1752860007256,0.85965368,118010.0,118000.0,8.236e-05]
[1752860007485,0.18648757,117970.0,117960.0,0.65838826]
[1752860007772,0.18648757,117970.0,117960.0,1.00057802]
[1752860008160,0.18648757,117970.0,117960.0,0.52639773]
[1752860008360,0.23637964,117970.0,117960.0,0.52639773]
[1752860008770,0.18648757,117970.0,117960.0,1.00899599]
[1752860008970,0.18648757,117970.0,117960.0,1.18154498]
[1752860009201,0.18648757,117970.0,117960.0,1.18702235]
[1752860009434,0.19496422,117970.0,117960.0,0.52639773]
[1752860009651,0.19496422,117970.0,117960.0,1.00999599]
[1752860009804,0.19496422,117970.0,117960.0,1.01847343]
[1752860010009,0.19496422,117970.0,117960.0,1.0289508]
[1752860010246,0.19496422,117970.0,117960.0,1.02047343]
[1752860010455,0.19496422,117970.0,117960.0,1.00999599]
[1752860010879,0.18648785,117970.0,117960.0,1.01099599]
[1752860011280,0.19496458,117970.0,117960.0,1.01947343]
[1752860011514,0.18648785,117970.0,117960.0,1.19749979]
[1752860011926,0.18648785,117970.0,117960.0,1.01099599]
[1752860012344,0.21232599,117990.0,117960.0,0.55806672]
[1752860012574,0.21232599,117990.0,117980.0,0.21787205]
[1752860012575,0.186456,117990.0,117980.0,0.21787205]
[1752860012785,0.186456,117990.0,117980.0,0.84213017]
[1752860012995,0.19493107,117990.0,117980.0,0.84524031]
[1752860013213,0.186456,117990.0,117980.0,0.85371596]
[1752860013487,0.194931,117990.0,117980.0,0.85371603]
[1752860013708,0.18645593,117990.0,117980.0,0.86219161]
[1752860013921,0.00847464,117990.0,117980.0,0.8621911]
[1752860014100,0.001,117990.0,117980.0,0.8621911]
[1752860014246,0.002,117990.0,117980.0,0.8621911]
[1752860014445,0.01047464,117990.0,117980.0,0.8621911]
[1752860014657,0.001,117990.0,117980.0,0.8621911]
[1752860014921,0.17898068,117990.0,117980.0,0.85371567]
[1752860015124,0.17798068,117990.0,117980.0,0.84524009]
[1752860015348,0.18645561,117990.0,117980.0,0.34669025]
[1752860015482,0.25415801,117990.0,117980.0,0.83776437]
[1752860015687,0.25415801,117990.0,117980.0,0.83776445]
[1752860016085,0.25515801,117990.0,117980.0,0.83776445]
[1752860016279,0.25515801,117990.0,117980.0,0.84624031]
[1752860016545,0.25415801,117990.0,117980.0,0.65976826]
[1752860016673,0.2626333,117990.0,117980.0,0.17717]
[1752860016874,0.2626333,117990.0,117980.0,0.65976826]
[1752860017284,0.2626333,117990.0,117980.0,0.66824427]
[1752860017484,0.2626333,117990.0,117980.0,0.82928851]
[1752860017485,0.25415801,117990.0,117980.0,0.82928851]
[1752860017714,0.25415801,117990.0,117980.0,0.65976826]
[1752860017916,0.2626333,117990.0,117980.0,0.65976826]
[1752860018338,0.2626333,117990.0,117980.0,0.03749]
[1752860018339,0.2646133,117990.0,117980.0,0.03749]
[1752860018547,0.20463633,117990.0,117980.0,0.14032]
[1752860018774,0.30850661,117990.0,117980.0,0.001]
[1752860018977,0.93034487,117990.0,117980.0,0.001]
[1752860019382,0.44774661,117990.0,117980.0,0.001]
[1752860019603,0.44468661,117990.0,117980.0,0.001]
[1752860019751,0.44468661,117990.0,117980.0,0.48868826]
[1752860019752,0.32771633,117990.0,117980.0,0.48868826]
[1752860019964,0.32673633,117990.0,117980.0,0.48868826]
[1752860020370,0.32573633,117990.0,117980.0,0.00609]
[1752860020576,0.32771633,117990.0,117980.0,0.00509]
[1752860020773,0.38181659,117990.0,117980.0,0.00509]
[1752860021080,0.38181659,117990.0,117980.0,0.00198]
[1752860022669,0.17898082,117990.0,117980.0,0.68960851]
[1752860022871,0.20440575,117990.0,117980.0,0.69808452]
[1752860023259,0.19593104,117990.0,117980.0,0.52008826]
[1752860023488,0.18745611,117990.0,117980.0,0.52008826]
[1752860023891,0.17898111,117990.0,117980.0,0.48768826]
[1752860024008,0.24884865,117990.0,117980.0,0.48768826]
[1752860024218,0.24884865,117990.0,117980.0,0.00509]
[1752860024413,0.24884865,117990.0,117980.0,0.48768826]
[1752860024639,0.24235343,117990.0,117980.0,0.00509]
[1752860025608,0.24235343,117990.0,117980.0,0.17461025]
[1752860026069,0.18096104,117990.0,117980.0,0.20003791]
[1752860026279,0.17898104,117990.0,117980.0,0.68263617]
[1752860026692,0.17898104,117990.0,117980.0,0.67416046]
[1752860026907,0.17050589,117990.0,117980.0,0.48768826]
[1752860027113,0.17050589,117990.0,117980.0,0.66568452]
[1752860027351,0.17898111,117990.0,117980.0,0.68263632]
[1752860027583,0.18745611,117990.0,117980.0,0.72341204]
[1752860027784,0.02642472,117990.0,117980.0,0.73188755]
[1752860028244,0.19593061,117990.0,117980.0,0.73188755]
[1752860028477,0.02642472,117990.0,117980.0,0.73188755]
[1752860028898,0.21288098,117990.0,117980.0,0.73188726]
[1752860029097,0.04337509,117990.0,117980.0,0.72341132]
[1752860029448,0.02642472,117990.0,117980.0,0.73188683]
[1752860029643,0.03489987,117990.0,117980.0,0.73188683]
[1752860030212,0.001,117990.0,117980.0,0.73188683]
[1752860030397,0.0179495,117990.0,117980.0,0.24928857]
[1752860030593,0.0179495,117990.0,117980.0,0.73188683]
[1752860030820,0.001,117990.0,117980.0,1.07188683]
[1752860031024,0.001,117990.0,117980.0,1.21104683]
[1752860031245,0.001,117990.0,117980.0,1.38231673]
[1752860031848,0.001,117990.0,117980.0,1.29655711]
[1752860032245,0.00847392,118000.0,117990.0,0.5662309]
[1752860032526,0.1694628,118020.0,117990.0,1.02849415]
[1752860032719,0.02541826,118020.0,118010.0,0.69546277]
[1752860033012,0.02541826,118020.0,118010.0,0.70902641]
[1752860033013,0.20335412,118020.0,118010.0,0.70902641]
[1752860033219,0.19488156,118020.0,118010.0,0.21795458]
[1752860033426,0.1694628,118020.0,118010.0,0.00509]
[1752860033636,0.21735684,118020.0,118010.0,0.48457826]
[1752860034058,0.1715923,118020.0,118010.0,0.69623044]
[1752860034372,0.1715923,118020.0,118010.0,0.69934044]
[1752860037208,0.17908529,118020.0,118010.0,0.70781415]
[1752860037414,0.17908529,118020.0,118010.0,0.69934058]
[1752860037637,0.17908529,118020.0,118010.0,0.69933634]
[1752860037879,0.17908529,118020.0,118010.0,0.71628376]
[1752860038077,0.17908529,118020.0,118010.0,0.52985918]
[1752860038339,0.21425271,118020.0,118010.0,0.52138533]
[1752860038548,0.21623271,118020.0,118010.0,0.52138533]
[1752860039421,0.23153271,118020.0,118010.0,0.03567707]